bitfinex-derivatives/quotes_SOLF0:USTF0_20220106
["timestamp","ask_amount","ask_price","bid_price","bid_amount"]
[1641431607959,40.87986702,153.35,153.27,27.66479]
[1641431608159,40.87986702,153.35,153.32,27.66479]
[1641431608359,36.87986702,153.35,153.32,27.66479]
[1641431608559,4.0,153.37,153.32,27.66479]
[1641431608759,36.87986702,153.39,153.32,27.66479]
[1641431608959,4.0,153.37,153.32,27.66479]
[1641431609160,36.87986702,153.39,153.32,27.66479]
[1641431609863,4.0,153.37,153.32,27.66479]
[1641431610062,36.87986702,153.4,153.32,27.66479]
[1641431610264,4.0,153.36,153.32,27.66479]
[1641431610662,4.0,153.37,153.32,27.66479]
[1641431611264,36.87986702,153.39,153.32,27.66479]
[1641431611467,4.0,153.38,153.32,27.66479]
[1641431611765,4.0,153.37,153.32,27.66479]
[1641431611964,36.87986702,153.4,153.32,27.66479]
[1641431612965,4.0,153.38,153.32,27.66479]
[1641431613466,36.87986702,153.4,153.32,27.66479]
[1641431614165,36.87986702,153.4,153.38,27.66479]
[1641431615764,4.0,153.42,153.38,27.66479]
[1641431615765,17.81023081,153.42,153.38,27.66479]
[1641431615965,4.0,153.4,153.38,27.66479]
[1641431616566,13.81023081,153.42,153.38,27.66479]
[1641431616768,4.0,153.4,153.38,27.66479]
[1641431617167,4.0,153.39,153.34,13.81023081]
[1641431617366,13.81023081,153.41,153.34,13.81023081]
[1641431617367,4.0,153.37,153.34,13.81023081]
[1641431617568,13.81023081,153.41,153.34,13.81023081]
[1641431617969,13.81023081,153.41,153.33,66.9905]
[1641431617970,13.81023081,153.4,153.33,80.80073081]
[1641431618671,17.81023081,153.4,153.33,80.80073081]
[1641431618870,13.81023081,153.4,153.33,80.80073081]
[1641431619971,13.81023081,153.4,153.35,6.51084055]
[1641431620271,13.81023081,153.41,153.37,27.66479]
[1641431620475,17.81023081,153.41,153.37,27.66479]
[1641431621372,4.0,153.41,153.37,27.66479]
[1641431621673,4.0,153.42,153.37,27.66479]
[1641431621874,13.81023081,153.43,153.37,27.66479]
[1641431622175,13.81023081,153.42,153.41,27.66479]
[1641431622774,11.92693,153.45,153.41,27.66479]
[1641431623374,11.92693,153.46,153.41,27.66479]
[1641431623577,9.81483,153.46,153.41,27.66479]
[1641431623782,55.3113023,153.52,153.45,6.5066042]
[1641431624177,55.3113023,153.52,153.51,27.66479]
[1641431624577,64.7577,153.58,153.51,27.66479]
[1641431624777,4.0,153.54,153.51,27.66479]
[1641431625581,128.0444886,153.59,153.51,27.66479]
[1641431625780,4.0,153.54,153.51,27.66479]
[1641431626786,4.0,153.53,153.51,27.66479]
[1641431627787,4.0,153.58,153.51,27.66479]
[1641431628089,16.85281253,153.58,153.51,27.66479]
[1641431628287,4.0,153.57,153.51,27.66479]
[1641431628587,4.0,153.53,153.51,27.66479]
[1641431628787,4.0,153.57,153.51,27.66479]
[1641431628987,4.0,153.53,153.51,27.66479]
[1641431629188,4.0,153.57,153.51,27.66479]
[1641431629490,4.0,153.52,153.49,27.66479]
[1641431630289,4.0,153.5,153.49,27.66479]
[1641431631394,4.0,153.5,153.46,27.66479]
[1641431631591,4.0,153.53,153.46,27.66479]
[1641431632093,4.0,153.48,153.46,27.66479]
[1641431632294,4.0,153.47,153.46,27.66479]
[1641431632495,4.0,153.47,153.42,89.62219]
[1641431632696,4.0,153.46,153.42,27.66479]
[1641431632893,4.0,153.48,153.42,27.66479]
[1641431633096,4.0,153.5,153.42,27.66479]
[1641431633696,4.0,153.49,153.45,6.50639253]
[1641431634697,4.0,153.49,153.47,27.66479]
[1641431635197,80.53987373,153.56,153.47,27.66479]
[1641431635398,4.0,153.53,153.47,27.66479]
[1641431635999,16.84327373,153.55,153.47,27.66479]
[1641431636197,4.0,153.52,153.47,27.66479]
[1641431636399,4.0,153.51,153.47,27.66479]
[1641431636598,4.0,153.49,153.47,27.66479]
[1641431636997,4.0,153.48,153.47,27.66479]
[1641431637197,4.0,153.48,153.4,6.50872169]
[1641431637397,4.0,153.45,153.4,6.50872169]
[1641431637596,3.31337942,153.5,153.4,6.50872169]
[1641431638197,4.0,153.52,153.41,6.5080863]
[1641431638597,4.0,153.46,153.43,27.66479]
[1641431640198,3.31473976,153.51,153.43,27.66479]
[1641431640399,4.0,153.46,153.43,27.66479]
[1641431640801,4.0,153.49,153.43,27.66479]
[1641431642102,4.0,153.49,153.41,17.26997338]
[1641431642503,4.0,153.48,153.46,27.66479]
[1641431642703,93.25799,153.55,153.46,27.66479]
[1641431642902,4.0,153.54,153.46,27.66479]
[1641431643102,4.0,153.49,153.46,27.66479]
[1641431644704,11.90504155,153.54,153.46,27.66479]
[1641431644905,4.0,153.48,153.46,27.66479]
[1641431645508,15.90504155,153.54,153.46,27.66479]
[1641431645707,4.0,153.49,153.46,27.66479]
[1641431646508,3.31415028,153.48,153.46,27.66479]
[1641431647912,36.8077195,153.53,153.46,34.17097087]
[1641431648212,4.0,153.51,153.46,34.17097087]
[1641431648614,4.0,153.51,153.5,27.66479]
[1641431655519,13.80010116,153.54,153.5,27.66479]
[1641431655722,4.0,153.53,153.5,27.66479]
[1641431656123,4.5772922,153.55,153.5,27.66479]
[1641431656521,4.0,153.52,153.5,27.66479]
[1641431656720,4.5772922,153.55,153.5,27.66479]
[1641431656922,4.0,153.51,153.5,27.66479]
[1641431658323,4.5772922,153.54,153.5,27.66479]
[1641431658524,4.0,153.53,153.5,27.66479]
[1641431658829,4.5772922,153.53,153.5,27.66479]
[1641431659527,4.0,153.52,153.5,27.66479]
[1641431660127,4.5772922,153.53,153.5,27.66479]
[1641431660527,4.0,153.52,153.5,27.66479]
[1641431661332,4.5772922,153.55,153.5,27.66479]
[1641431661529,4.0,153.51,153.5,27.66479]
[1641431662530,4.0,153.51,153.5,32.2420822]
[1641431663431,4.0,153.51,153.5,27.66479]
[1641431664233,8.0,153.51,153.49,4.5772922]
[1641431664435,4.0,153.5,153.46,13.80010116]
[1641431664634,4.0,153.47,153.46,13.80010116]
[1641431664833,4.0,153.47,153.45,13.80010116]
[1641431665233,66.1033,153.5,153.45,13.80010116]
[1641431665234,8.0,153.46,153.45,13.80010116]
[1641431665933,8.0,153.46,153.42,27.66479]
[1641431666133,4.0,153.43,153.42,27.66479]
[1641431666334,4.0,153.46,153.42,27.66479]
[1641431667835,4.0,153.46,153.43,20.26813811]
[1641431668034,66.1033,153.5,153.43,20.26813811]
[1641431668939,66.1033,153.5,153.42,69.12968116]
[1641431669138,66.1033,153.5,153.43,3.6810665]
[1641431669537,4.0,153.55,153.43,10.18851753]
[1641431669837,4.0,153.54,153.43,30.45664914]
[1641431670639,4.0,153.54,153.46,27.66479]
[1641431671939,67.1368,153.55,153.46,27.66479]
[1641431672144,4.0,153.54,153.46,27.66479]
[1641431672540,67.1368,153.55,153.46,27.66479]
[1641431672740,4.0,153.54,153.46,27.66479]
[1641431672940,67.1368,153.55,153.46,27.66479]
[1641431672941,4.0,153.53,153.46,27.66479]
[1641431673140,67.1368,153.55,153.46,27.66479]
[1641431673340,4.0,153.51,153.46,27.66479]
[1641431673745,4.0,153.53,153.46,27.66479]
[1641431673942,4.0,153.51,153.46,27.66479]
[1641431674442,67.1368,153.55,153.46,27.66479]
[1641431674642,4.0,153.51,153.46,27.66479]
[1641431675544,4.0,153.51,153.47,20.29862797]
[1641431675944,4.0,153.5,153.47,20.29862797]
[1641431676345,4.0,153.51,153.47,20.29862797]
[1641431676647,4.0,153.51,153.47,13.80010116]
[1641431676845,4.0,153.51,153.46,27.66479]
[1641431677647,17.80010116,153.51,153.46,27.66479]
[1641431677947,4.0,153.5,153.46,27.66479]
[1641431679549,17.80010116,153.51,153.46,27.66479]
[1641431680248,13.80010116,153.51,153.46,27.66479]
[1641431680450,17.80010116,153.51,153.46,27.66479]
[1641431680849,13.80010116,153.51,153.46,27.66479]
[1641431682751,17.80010116,153.54,153.46,41.46489116]
[1641431683354,13.80010116,153.54,153.46,41.46489116]
[1641431684153,13.80010116,153.54,153.48,6.50533437]
[1641431684355,13.80010116,153.55,153.48,20.30543553]
[1641431684653,13.80010116,153.55,153.5,27.66479]
[1641431685454,71.563,153.57,153.51,20.29855567]
[1641431685655,4.0,153.57,153.51,20.29855567]
[1641431686857,13.80010116,153.58,153.52,4.0]
[1641431687058,36.8077195,153.63,153.54,4.0]
[1641431687254,36.8077195,153.63,153.53,64.727]
[1641431687457,40.8077195,153.63,153.53,64.727]
[1641431687656,36.8077195,153.63,153.53,64.727]
[1641431688155,62.0025,153.65,153.54,17.25907799]
[1641431688356,62.0025,153.65,153.56,6.50173922]
[1641431688758,62.0025,153.65,153.61,27.66479]
[1641431688956,4.0,153.67,153.61,27.66479]
[1641431689359,3.30834605,153.64,153.61,27.66479]
[1641431689658,3.30834605,153.64,153.58,27.66479]
[1641431689858,3.30834605,153.64,153.58,34.16568387]
[1641431690258,3.30834605,153.64,153.59,7.78689028]
[1641431691259,7.30834605,153.66,153.59,7.78689028]
[1641431692061,4.0,153.64,153.59,7.78689028]
[1641431692261,4.0,153.6,153.59,1.28843577]
[1641431692461,4.0,153.6,153.55,3.6810665]
[1641431692661,4.0,153.58,153.55,3.6810665]
[1641431692862,4.0,153.58,153.5,27.66479]
[1641431693564,27.66479,153.6,153.5,27.66479]
[1641431693765,4.0,153.56,153.51,6.5005466]
[1641431694166,11.88580205,153.59,153.51,6.5005466]
[1641431694367,4.0,153.58,153.51,6.5005466]
[1641431694967,11.88580205,153.59,153.51,6.5005466]
[1641431695566,11.88580205,153.59,153.51,13.00461164]
[1641431695969,31.66479,153.6,153.51,13.00461164]
[1641431696367,27.66479,153.6,153.51,13.00461164]
[1641431696569,4.0,153.61,153.51,13.00461164]
[1641431696768,4.0,153.61,153.54,27.66479]
[1641431697169,4.0,153.58,153.54,27.66479]
[1641431697370,4.0,153.58,153.51,13.00461164]
[1641431697872,4.0,153.59,153.51,6.50406504]
[1641431698673,4.0,153.57,153.51,6.50406504]
[1641431698871,4.0,153.55,153.49,31.34378043]
[1641431699272,4.0,153.55,153.51,6.50029436]
[1641431700371,4.0,153.56,153.51,6.50029436]
[1641431700771,4.0,153.56,153.49,27.66479]
[1641431700772,4.0,153.56,153.5,6.50029436]
[1641431703873,4.0,153.55,153.5,6.50029436]
[1641431704075,4.0,153.54,153.5,6.50029436]
[1641431704273,4.0,153.55,153.5,6.50029436]
[1641431704475,4.0,153.56,153.5,6.50029436]
[1641431704775,31.66479,153.56,153.5,6.50029436]
[1641431705777,4.0,153.54,153.5,6.50029436]
[1641431707178,31.66479,153.56,153.5,6.50029436]
[1641431707981,4.0,153.54,153.5,6.50029436]
[1641431708581,4.0,153.55,153.5,6.50029436]
[1641431708982,27.66479,153.56,153.5,6.50029436]
[1641431709183,4.0,153.58,153.5,6.50029436]
[1641431709383,70.7555,153.59,153.5,6.50029436]
[1641431709588,66.7555,153.59,153.5,6.50029436]
[1641431709784,66.7555,153.59,153.5,13.00457092]
[1641431709986,36.8077195,153.61,153.5,75.40247092]
[1641431710385,36.8077195,153.61,153.5,79.40247092]
[1641431710585,71.0123,153.62,153.5,79.40247092]
[1641431710787,71.0123,153.62,153.54,27.66479]
[1641431710989,67.0123,153.62,153.54,27.66479]
[1641431711587,71.0123,153.62,153.54,27.66479]
[1641431711988,67.0123,153.62,153.54,27.66479]
[1641431712189,4.0,153.63,153.54,27.66479]
[1641431712787,4.0,153.63,153.54,55.32958]
[1641431713590,4.0,153.63,153.55,6.50020146]
[1641431714793,4.0,153.63,153.57,27.66479]
[1641431715495,11.88891376,153.65,153.57,27.66479]
[1641431715793,11.88891376,153.65,153.59,6.50068257]
[1641431715993,6.25538276,153.65,153.59,6.50068257]
[1641431716794,36.8077195,153.67,153.64,27.66479]
[1641431716993,31.66479,153.7,153.64,27.66479]
[1641431718095,31.66479,153.7,153.62,27.66479]
[1641431718595,13.78696899,153.68,153.62,20.31173987]
[1641431718795,4.0,153.67,153.62,20.31173987]
[1641431719095,4.0,153.66,153.61,13.78696899]
[1641431719294,4.0,153.65,153.61,13.78696899]
[1641431719694,4.0,153.63,153.61,13.78696899]
[1641431719895,4.0,153.65,153.61,13.78696899]
[1641431720096,17.78696899,153.65,153.58,13.78696899]
[1641431720996,17.78696899,153.65,153.56,34.16674059]
[1641431720997,27.66479,153.64,153.57,13.78696899]
[1641431722095,27.66479,153.64,153.59,13.78696899]
[1641431722899,27.66479,153.64,153.58,13.78696899]
[1641431723601,17.78696899,153.66,153.58,13.78696899]
[1641431723803,13.78696899,153.66,153.58,13.78696899]
[1641431724805,13.78696899,153.65,153.62,4.59628052]
[1641431725708,13.78696899,153.67,153.64,4.59628052]
[1641431729610,13.78696899,153.69,153.65,4.59628052]
[1641431730711,13.78696899,153.68,153.65,4.59628052]
[1641431731510,13.78696899,153.69,153.65,4.59628052]
[1641431733012,17.09235609,153.69,153.65,4.59628052]
[1641431733816,3.3053871,153.69,153.66,4.59628052]
[1641431736617,17.09235609,153.69,153.65,4.59628052]
[1641431737317,17.09235609,153.69,153.67,4.59628052]
[1641431737318,3.3053871,153.69,153.67,4.59628052]
[1641431739116,13.78696899,153.68,153.65,4.59628052]
[1641431742022,13.78696899,153.68,153.64,1.28953821]
[1641431742222,4.5943844,153.68,153.64,13.78696899]
[1641431744127,3.3053871,153.69,153.67,4.59442106]
[1641431745126,3.3053871,153.69,153.66,4.59442106]
[1641431746226,13.78696899,153.7,153.66,8.59442106]
[1641431746427,13.78696899,153.7,153.66,4.59442106]
[1641431747429,13.78696899,153.7,153.68,4.0]
[1641431747629,9.76256899,153.7,153.67,27.66479]
[1641431748530,9.76256899,153.73,153.69,4.59442106]
[1641431749431,9.76256899,153.73,153.7,4.59442106]
[1641431750533,11.87579179,153.76,153.71,4.59442106]
[1641431752033,11.87579179,153.77,153.72,4.59442106]
[1641431757638,11.87579179,153.77,153.74,27.66479]
[1641431758141,11.87579179,153.81,153.75,4.59442106]
[1641431759942,4.59200439,153.76,153.75,4.59442106]
[1641431760546,4.59200439,153.76,153.75,0.41252106]
[1641431760740,4.0,153.78,153.69,62.7702]
[1641431761142,4.0,153.79,153.69,62.7702]
[1641431761344,36.8077195,153.8,153.69,62.7702]
[1641431761946,64.4725095,153.8,153.69,62.7702]
[1641431762246,27.66479,153.8,153.7,6.50225217]
[1641431762945,11.87579179,153.79,153.7,6.50225217]
[1641431764047,11.87579179,153.79,153.7,38.16704217]
[1641431764749,11.87579179,153.79,153.7,34.16704217]
[1641431765148,27.66479,153.8,153.71,6.50225217]
[1641431766449,99.6162195,153.82,153.72,4.0]
[1641431766650,99.6162195,153.82,153.71,10.50225217]
[1641431767251,11.86558953,153.79,153.71,10.50225217]
[1641431767453,11.86558953,153.79,153.71,6.50225217]
[1641431767652,11.86558953,153.79,153.71,12.99765667]
[1641431768053,27.66479,153.79,153.71,12.99765667]
[1641431768457,27.66479,153.79,153.71,16.99765667]
[1641431768752,27.66479,153.79,153.71,12.99765667]
[1641431770154,36.8077195,153.81,153.71,12.99765667]
[1641431770356,99.6162195,153.82,153.71,12.99765667]
[1641431771055,99.6162195,153.82,153.71,16.99765667]
[1641431771256,11.86452647,153.81,153.71,16.99765667]
[1641431771556,11.86452647,153.81,153.71,12.99765667]
[1641431771958,4.0,153.79,153.71,6.50225217]
[1641431772159,4.0,153.77,153.71,6.50225217]
[1641431772356,27.66479,153.78,153.71,6.50225217]
[1641431772556,4.0,153.76,153.71,6.50225217]
[1641431772859,4.0,153.77,153.71,6.50225217]
[1641431773161,31.66479,153.78,153.71,6.50225217]
[1641431773457,11.86452647,153.77,153.69,69.26644842]
[1641431774558,97.10359,153.78,153.7,6.50227984]
[1641431775558,93.10359,153.78,153.69,69.26644842]
[1641431776360,93.10359,153.78,153.7,6.50226435]
[1641431778564,106.88081801,153.78,153.71,13.77722801]
[1641431780365,4.0,153.77,153.71,13.77722801]
[1641431780565,4.0,153.76,153.71,13.77722801]
[1641431780864,4.0,153.77,153.71,13.77722801]
[1641431781365,106.88081801,153.78,153.71,13.77722801]
[1641431781565,110.88081801,153.78,153.71,13.77722801]
[1641431781767,97.10359,153.78,153.71,13.77722801]
[1641431781966,13.7785492,153.76,153.69,83.04367643]
[1641431784571,27.66479,153.74,153.69,76.54742801]
[1641431784768,27.66479,153.74,153.69,13.77722801]
[1641431785568,11.86909893,153.77,153.69,13.77722801]
[1641431786469,13.77837356,153.76,153.69,13.77722801]
[1641431787072,13.77837356,153.76,153.69,21.56968198]
[1641431789574,13.77837356,153.76,153.7,27.66479]
[1641431789775,65.4388,153.78,153.7,27.66479]
[1641431789977,79.21683356,153.78,153.71,13.77722801]
[1641431791179,3.30220732,153.77,153.72,13.77722801]
[1641431792178,65.4388,153.78,153.72,13.77722801]
[1641431792881,3.30220993,153.77,153.72,13.77722801]
[1641431793782,79.21683356,153.78,153.72,13.77722801]
[1641431793980,79.21683356,153.78,153.72,1.29016178]
[1641431794480,3.30214434,153.77,153.72,21.56962809]
[1641431795782,65.4388,153.78,153.72,21.56962809]
[1641431796482,3.30194192,153.77,153.73,13.77722801]
[1641431797183,3.30194192,153.77,153.73,41.44201801]
[1641431797582,13.77665482,153.79,153.73,27.66479]
[1641431797783,13.77665482,153.79,153.73,31.66479]
[1641431797983,13.77665482,153.79,153.74,4.0]
[1641431798383,13.77665482,153.79,153.73,27.66479]
[1641431798585,3.30116802,153.81,153.75,15.06738979]
[1641431799985,76.40315482,153.82,153.75,21.56962809]
[1641431800486,76.40315482,153.82,153.75,25.24297822]
[1641431800886,3.30092238,153.81,153.75,25.24297822]
[1641431801287,3.30092238,153.81,153.76,27.66479]
[1641431801992,62.6265,153.82,153.76,27.66479]
[1641431802191,62.6265,153.82,153.76,42.73217979]
[1641431803191,3.30072879,153.81,153.77,1.29016178]
[1641431803995,62.6265,153.82,153.76,13.77722801]
[1641431804197,13.77379392,153.81,153.76,1.29038886]
[1641431804999,13.77379392,153.81,153.76,5.29038886]
[1641431805199,13.77379392,153.81,153.76,1.29038886]
[1641431805398,3.30075954,153.81,153.75,45.11183902]
[1641431805598,3.30075954,153.81,153.75,17.44704902]
[1641431805800,3.30075954,153.81,153.75,13.77369889]
[1641431806601,13.77379392,153.82,153.75,13.77369889]
[1641431806802,13.77379392,153.8,153.76,1.29039406]
[1641431808003,13.77572981,153.79,153.72,15.06403692]
[1641431808906,17.77572981,153.79,153.72,15.06403692]
[1641431809105,4.0,153.78,153.73,13.77369889]
[1641431809305,27.66479,153.75,153.73,13.77369889]
[1641431810208,24.24071609,153.75,153.72,1.29033803]
[1641431810711,24.24071609,153.75,153.7,78.15849889]
[1641431810910,24.24071609,153.75,153.74,1.29022381]
[1641431811616,27.54320841,153.75,153.71,1.29022381]
[1641431811813,27.54320841,153.75,153.71,4.96449722]
[1641431812415,24.24071609,153.75,153.71,4.96449722]
[1641431812716,24.24071609,153.75,153.72,1.29022381]
[1641431815821,24.24071609,153.75,153.72,15.0639227]
[1641431816420,81.40589582,153.79,153.72,15.0639227]
[1641431817621,3.30181394,153.78,153.72,15.0639227]
[1641431819422,27.66479,153.77,153.74,13.77369889]
[1641431820525,27.66479,153.77,153.73,13.77369889]
[1641431821324,32.25695289,153.77,153.73,13.77369889]
[1641431822126,32.25695289,153.77,153.74,13.77369889]
[1641431822926,32.25695289,153.77,153.73,13.77369889]
[1641431823128,4.59216289,153.77,153.73,13.77369889]
[1641431823930,4.59216289,153.78,153.74,13.77369889]
[1641431826733,4.59216289,153.77,153.73,13.77369889]
[1641431827335,27.66479,153.75,153.73,13.77369889]
[1641431828133,27.66479,153.75,153.72,1.29022381]
[1641431828334,3.30164547,153.74,153.72,1.29022381]
[1641431829135,3.30164547,153.74,153.69,1.29022381]
[1641431830237,3.30164547,153.74,153.69,4.96449722]
[1641431830637,4.59290971,153.72,153.69,4.96449722]
[1641431831439,4.59290971,153.72,153.7,1.29022381]
[1641431832545,3.30164547,153.74,153.7,15.0639227]
[1641431832546,4.59290971,153.73,153.7,15.0639227]
[1641431834143,4.59290971,153.75,153.72,4.0]
[1641431834344,9.71e-06,153.75,153.73,4.0]
[1641431834946,27.66479,153.8,153.74,1.29022381]
[1641431836350,27.66479,153.8,153.77,13.77346681]
[1641431838051,64.9848,153.83,153.77,13.77346681]
[1641431838853,64.9848,153.83,153.78,13.77346681]
[1641431839454,27.66479,153.83,153.78,13.77346681]
[1641431839656,3.3005841,153.82,153.78,13.77346681]
[1641431841556,27.66479,153.83,153.78,13.77346681]
[1641431842556,27.66479,153.83,153.77,4.96304056]
[1641431842557,3.3002984,153.82,153.77,4.96304056]
[1641431843658,3.3002984,153.82,153.78,1.29022381]
[1641431848660,3.3002984,153.83,153.78,1.29022381]
[1641431848861,3.3002984,153.83,153.78,5.29022381]
[1641431849160,3.3002984,153.83,153.79,4.0]
[1641431849363,3.3002984,153.83,153.78,11.7828871]
[1641431849661,13.77749582,153.84,153.78,11.7828871]
[1641431849861,27.66479,153.86,153.81,13.77346681]
[1641431850761,27.66479,153.86,153.82,13.77346681]
[1641431851163,67.3411,153.87,153.82,13.77346681]
[1641431851361,13.77749582,153.89,153.82,13.77346681]
[1641431851763,27.66479,153.88,153.82,13.77346681]
[1641431851962,3.29846175,153.86,153.82,13.77346681]
[1641431852663,3.29846175,153.86,153.8,63.47272381]
[1641431852664,3.29846175,153.87,153.83,13.77346681]
[1641431853464,3.29846175,153.87,153.82,13.77346681]
[1641431854865,7.29846175,153.87,153.82,15.06369062]
[1641431855966,4.0,153.87,153.82,13.77346681]
[1641431856166,4.0,153.87,153.76,6.49329567]
[1641431856767,27.66479,153.82,153.75,71.81999252]
[1641431857971,64.0544,153.83,153.75,71.81999252]
[1641431858872,3.29975314,153.82,153.77,13.77346681]
[1641431860875,3.29975314,153.82,153.78,4.0]
[1641431861475,13.77749582,153.84,153.78,4.0]
[1641431861676,13.77749582,153.85,153.78,17.77346681]
[1641431862980,3.29877192,153.85,153.79,15.06416884]
[1641431863478,3.29877192,153.85,153.79,42.72895884]
[1641431863879,3.29877192,153.85,153.8,13.77346681]
[1641431864678,7.29877192,153.85,153.8,13.77346681]
[1641431865081,13.77749582,153.84,153.78,13.77346681]
[1641431865583,27.66479,153.82,153.78,13.77346681]
[1641431866382,3.29877192,153.81,153.75,13.77346681]
[1641431867583,27.66479,153.79,153.75,13.77346681]
[1641431867782,3.29877192,153.81,153.75,13.77346681]
[1641431868583,3.29877192,153.81,153.76,13.77346681]
[1641431869683,3.29877192,153.81,153.77,13.77346681]
[1641431871286,27.66479,153.82,153.77,13.77346681]
[1641431871484,13.77749582,153.84,153.77,13.77346681]
[1641431871485,13.77749582,153.84,153.78,4.0]
[1641431871685,13.77749582,153.84,153.79,4.0]
[1641431871886,13.77749582,153.84,153.82,4.0]
[1641431872085,13.77749582,153.84,153.81,4.0]
[1641431872086,3.29924174,153.84,153.81,4.0]
[1641431872286,3.29924174,153.84,153.82,4.0]
[1641431872485,3.29924174,153.84,153.8,24.26528712]
[1641431872787,3.29924174,153.84,153.8,20.26528712]
[1641431873485,13.77749582,153.87,153.8,6.49182031]
[1641431873686,3.2976631,153.89,153.83,1.29070203]
[1641431874687,13.76783892,153.89,153.82,13.76783892]
[1641431875791,27.66479,153.87,153.82,13.76783892]
[1641431876890,13.76770249,153.89,153.83,4.0]
[1641431877090,27.66479,153.91,153.83,4.0]
[1641431877291,27.66479,153.91,153.83,62.4061]
[1641431877693,27.66479,153.91,153.83,66.4061]
[1641431878295,27.66479,153.91,153.84,1.29070203]
[1641431878494,3.29750463,153.9,153.85,13.76783892]
[1641431880693,3.29750463,153.9,153.84,21.56071648]
[1641431881795,27.66479,153.87,153.84,21.56071648]
[1641431882396,3.29750463,153.86,153.81,13.76783892]
[1641431883100,7.29750463,153.86,153.81,13.76783892]
[1641431883297,3.29750463,153.86,153.81,13.76783892]
[1641431883502,13.76520305,153.85,153.78,21.56071648]
[1641431884199,17.76520305,153.85,153.78,21.56071648]
[1641431884496,4.0,153.82,153.78,21.56071648]
[1641431884697,4.0,153.82,153.78,15.05854095]
[1641431884897,13.76520305,153.85,153.77,27.66479]
[1641431884898,4.0,153.79,153.77,41.43262892]
[1641431886100,4.0,153.79,153.76,27.66479]
[1641431886701,17.76520305,153.81,153.76,27.66479]
[1641431887101,4.0,153.81,153.76,27.66479]
[1641431888903,4.0,153.81,153.73,27.66479]
[1641431891305,4.0,153.81,153.74,6.49932944]
[1641431892504,4.0,153.81,153.73,27.66479]
[1641431893302,4.0,153.77,153.73,27.66479]
[1641431894306,63.4384,153.81,153.73,27.66479]
[1641431894506,67.4384,153.81,153.73,27.66479]
[1641431894905,63.4384,153.81,153.73,27.66479]
[1641431895307,63.4384,153.81,153.77,4.59226758]
[1641431895705,55.32958,153.83,153.77,4.59226758]
[1641431896308,55.32958,153.83,153.79,4.59226758]
[1641431897407,55.32958,153.83,153.8,4.59226758]
[1641431899309,55.32958,153.83,153.81,4.59226758]
[1641431900209,55.32958,153.83,153.8,4.59226758]
[1641431901609,55.32958,153.83,153.75,10.17349313]
[1641431901610,55.32958,153.83,153.81,4.59226758]
[1641431903014,55.32958,153.83,153.77,4.0]
[1641431903714,55.32958,153.83,153.76,4.0]
[1641431904916,36.8077195,153.9,153.79,4.0]
[1641431905115,64.9487,153.89,153.79,68.8305]
[1641431905518,64.9487,153.89,153.79,64.8305]
[1641431905816,64.9487,153.89,153.85,4.58999557]
[1641431906016,55.32958,153.86,153.85,4.58999557]
[1641431906917,27.66479,153.86,153.85,4.58999557]
[1641431907619,27.66479,153.86,153.83,4.0]
[1641431908218,27.66479,153.91,153.83,4.0]
[1641431908920,27.66479,153.91,153.87,4.0]
[1641431909219,36.8077195,153.96,153.89,4.5883582]
[1641431910019,27.66479,153.94,153.9,4.5883582]
[1641431911921,27.66479,153.94,153.91,4.5883582]
[1641431912726,27.66479,153.94,153.9,4.5883582]
[1641431913224,36.8077195,153.97,153.9,4.5883582]
[1641431914124,27.66479,153.93,153.9,4.5883582]
[1641431916225,36.8077195,153.97,153.9,4.5883582]
[1641431916424,13.76359216,153.93,153.89,4.5883582]
[1641431916825,27.66479,153.91,153.89,4.5883582]
[1641431917226,27.66479,153.91,153.9,4.5883582]
[1641431918427,27.66479,153.91,153.88,13.76359216]
[1641431918828,27.66479,153.89,153.88,13.76359216]
[1641431919428,27.66479,153.89,153.88,4.5884282]
[1641431921630,27.66479,153.89,153.87,13.76359216]
[1641431922430,27.66479,153.89,153.86,13.76359216]
[1641431923330,27.66479,153.89,153.87,13.76359216]
[1641431925233,27.66479,153.89,153.87,17.76359216]
[1641431925834,27.66479,153.89,153.88,1.29009429]
[1641431926837,27.66479,153.89,153.87,13.76359216]